bitfinex-derivatives/quotes_BNBF0:USTF0_20250116
["timestamp","ask_amount","ask_price","bid_price","bid_amount"]
[1737022962476,0.28157513,710.29,708.94,1.355]
[1737022969185,0.28157513,710.29,708.95,1.04512739]
[1737022969989,0.28157513,710.29,708.98,1.04512739]
[1737022970584,0.28157513,710.29,708.98,2.04712739]
[1737022971189,0.28157513,710.29,709.0,1.04512739]
[1737022971687,0.28157513,710.29,709.0,2.06812739]
[1737022972890,1.0560312,710.25,709.08,1.04512739]
[1737022973595,0.28159495,710.24,709.08,1.04512739]
[1737022973793,0.28159495,710.24,709.12,1.04512739]
[1737022973794,1.0560312,710.21,709.12,1.04512739]
[1737022973989,0.28161081,710.2,709.12,1.04512739]
[1737022974493,0.28161081,710.2,709.13,1.04512739]
[1737022976693,1.33764201,710.2,709.13,1.04512739]
[1737022977694,1.0560312,710.12,709.18,1.04512739]
[1737022977888,0.2816465,710.11,709.18,1.04512739]
[1737022978889,1.3376777,710.11,709.19,1.04512739]
[1737022979791,1.0560312,710.09,709.17,1.04512739]
[1737022980791,1.33768563,710.09,709.17,1.04512739]
[1737022981492,0.2816584,710.08,709.17,1.04512739]
[1737022982099,0.2816584,710.08,709.16,1.04512739]
[1737022983094,0.2816584,710.08,709.0,1.023]
[1737022992705,0.2816584,710.08,709.0,2.06]
[1737022996710,0.2816584,710.08,709.04,1.04453518]
[1737022998004,0.2816584,710.08,709.04,2.00153518]
[1737022998409,0.2816584,710.08,709.04,0.957]
[1737023000303,1.05651614,710.78,709.04,0.957]
[1737023001307,1.05651614,710.74,709.04,2.00153518]
[1737023002511,1.05651614,710.8,709.04,0.957]
[1737023003712,1.05651614,710.92,709.04,0.957]
[1737023004709,1.05651614,711.0,709.04,0.957]
[1737023005014,1.05651614,711.0,709.04,2.188]
[1737023007014,3.31521908,711.69,709.04,2.188]
[1737023007015,1.05651614,711.01,709.04,2.188]
[1737023011815,1.05651614,710.95,709.04,2.188]
[1737023013012,1.05651614,710.95,709.05,0.25898222]
[1737023013612,1.05651614,710.95,709.06,0.25898222]
[1737023013812,1.05651614,710.95,709.07,0.25898222]
[1737023014012,1.05651614,710.68,709.1,1.04453518]
[1737023015118,1.05651614,710.68,709.04,2.188]
[1737023015119,1.05651614,710.75,709.06,1.04453518]
[1737023016018,1.05651614,710.82,709.04,2.188]
[1737023016919,1.05651614,710.79,709.04,2.188]
[1737023019514,1.05651614,710.76,709.06,1.04453518]
[1737023020120,1.05651614,710.74,709.09,1.04453518]
[1737023021222,1.05651614,710.72,709.1,1.04453518]
[1737023022021,1.05651614,710.72,709.11,1.04453518]
[1737023023017,0.28141269,710.7,709.11,1.04453518]
[1737023024023,0.28141269,710.7,709.08,1.04453518]
[1737023025121,0.28141269,710.7,709.1,1.04453518]
[1737023026117,0.28141269,710.7,709.08,0.831]
[1737023026118,0.28141269,710.7,709.11,1.04453518]
[1737023027020,0.28141269,710.7,709.13,1.04453518]
[1737023028123,0.28141269,710.7,709.14,1.04453518]
[1737023029021,0.28141269,710.7,709.17,1.04453518]
[1737023029022,1.33792883,710.7,709.17,1.04453518]
[1737023029420,1.47083686,710.69,709.17,1.04453518]
[1737023029927,2.527353,710.69,709.19,1.04453518]
[1737023031425,2.527353,710.69,709.2,1.04453518]
[1737023032325,1.05651614,710.67,709.21,1.04453518]
[1737023033325,1.05651614,710.68,709.2,1.04453518]
[1737023035327,1.05651614,710.65,709.2,1.04453518]
[1737023036621,1.05651614,710.62,709.19,1.04453518]
[1737023037733,1.05651614,710.55,709.19,1.04453518]
[1737023038529,1.05651614,710.55,709.13,1.16]
[1737023038530,1.05651614,710.57,709.17,1.04453518]
[1737023039731,1.05651614,710.51,709.17,1.04453518]
[1737023040827,1.05651614,710.52,709.15,1.04453518]
[1737023041326,1.05651614,710.52,709.15,1.96453518]
[1737023041723,1.05651614,710.5,709.17,1.04453518]
[1737023042629,1.05651614,710.5,709.15,0.92]
[1737023042630,0.28141269,710.7,709.15,0.92]
[1737023050034,1.47085758,710.69,709.15,0.92]
[1737023050235,0.28142457,710.67,709.15,0.92]
[1737023051635,0.28142457,710.67,709.15,1.687]
[1737023052838,0.28142457,710.67,709.15,2.73153518]
[1737023053938,1.33794071,710.67,709.15,2.73153518]
[1737023055136,1.05651614,710.57,709.22,1.04453518]
[1737023055838,0.28147209,710.55,709.22,1.04453518]
[1737023056039,1.05651614,710.54,709.22,1.04453518]
[1737023056337,0.28148398,710.52,709.22,1.04453518]
[1737023056939,1.05651614,710.43,709.29,1.04453518]
[1737023057142,0.2815236,710.42,709.29,1.04453518]
[1737023058840,0.2815236,710.42,709.31,1.04453518]
[1737023059845,1.33803974,710.42,709.32,1.04453518]
[1737023061148,1.05651614,710.41,709.33,1.04453518]
[1737023061542,0.28153153,710.4,709.33,1.04453518]
[1737023061943,0.28153153,710.4,709.2,1.04453518]
[1737023063350,0.28153153,710.4,709.19,1.04453518]
[1737023064545,0.28153153,710.4,709.15,0.92]
[1737023065853,0.28153153,710.4,709.15,1.768]
[1737023072663,0.28153153,710.4,709.15,2.81253518]
[1737023073561,0.28153153,710.4,709.2,1.04453518]
[1737023074861,0.28153153,710.4,709.2,2.38753518]
[1737023075763,0.28153153,710.4,709.21,1.04453518]
[1737023076958,0.28153153,710.4,709.24,1.04453518]
[1737023077958,0.28153153,710.4,709.25,1.04453518]
[1737023078864,0.28153153,710.4,709.35,1.04453518]
[1737023081365,1.33804767,710.4,709.34,1.04453518]
[1737023082566,1.05651614,710.38,709.36,1.04453518]
[1737023082765,0.28154342,710.37,709.36,1.04453518]
[1737023083365,0.28154342,710.37,709.32,1.04453518]
[1737023084567,0.28154342,710.37,709.33,1.04453518]
[1737023086666,0.28154342,710.37,709.2,1.343]
[1737023086667,0.28154342,710.37,709.36,1.04453518]
[1737023087669,0.28154342,710.37,709.29,1.04453518]
[1737023088470,0.28154342,710.37,709.21,1.04453518]
[1737023089667,0.28154342,710.37,709.2,1.343]
[1737023090071,0.28154342,710.37,709.2,2.375]
[1737023101880,1.47122549,710.36,709.2,2.375]
[1737023102082,0.28155531,710.34,709.2,2.375]
[1737023144706,0.28155531,710.34,709.24,1.04453518]
[1737023146007,0.28155531,710.34,709.24,1.88653518]
[1737023146207,0.28155531,710.34,709.27,1.04453518]
[1737023147507,0.28155531,710.34,709.33,1.04453518]
[1737023148609,0.28155531,710.34,709.34,1.04453518]
[1737023150911,0.28155531,710.34,709.39,1.04453518]
[1737023154014,0.28155531,710.34,709.36,1.04453518]
[1737023154913,0.28155531,710.34,709.37,1.04453518]
[1737023156015,0.28155531,710.34,709.25,1.04453518]
[1737023156814,0.28155531,710.34,709.24,1.835]
[1737023171526,0.28148398,710.52,709.24,1.835]
[1737023171928,0.28148398,710.52,709.29,1.04453518]
[1737023172729,0.28148398,710.52,709.03,1.04453518]
[1737023172730,0.28148398,710.52,709.28,1.04453518]
[1737023173330,0.28148398,710.52,709.28,3.04753518]
[1737023173931,0.28148398,710.52,709.3,1.04453518]
[1737023177930,0.28148398,710.52,709.29,1.04453518]
[1737023178731,0.28148398,710.52,709.28,2.003]
[1737023178732,0.28148398,710.52,709.3,1.04453518]
[1737023182033,1.05651614,710.44,709.36,1.04453518]
[1737023182234,0.28151964,710.43,709.36,1.04453518]
[1737023183034,1.33803578,710.43,709.36,1.04453518]
[1737023184136,0.28151964,710.43,709.35,1.04453518]
[1737023186538,0.28151964,710.43,709.34,1.04453518]
[1737023187336,0.28151964,710.43,709.28,2.003]
[1737023197142,0.28151964,710.43,709.32,1.04453518]
[1737023197948,0.28151964,710.43,709.34,1.04453518]
[1737023198651,0.28151964,710.43,709.35,1.04453518]
[1737023199551,0.28151964,710.43,709.4,1.04453518]
[1737023200851,1.05651614,710.42,709.43,1.04453518]
[1737023201950,0.28151964,710.43,709.38,1.04453518]
[1737023203851,0.28151964,710.43,709.34,1.7]
[1737023203852,0.28151964,710.43,709.39,1.04453518]
[1737023204752,0.28151964,710.43,709.34,1.7]
[1737023204753,0.28151964,710.43,709.36,1.04453518]
[1737023206048,0.28151964,710.43,709.37,1.04453518]
[1737023210656,0.28151964,710.43,709.4,1.04453518]
[1737023211559,0.28151964,710.43,709.39,1.04453518]
[1737023214060,0.28151964,710.43,709.34,1.7]
[1737023214061,0.28151964,710.43,709.43,1.04453518]
[1737023216958,0.28151964,710.43,709.44,1.04453518]
[1737023218856,0.28151964,710.43,709.44,3.08953518]
[1737023219062,1.33803578,710.43,709.44,3.08953518]
[1737023219863,1.33803578,710.43,709.45,1.04453518]
[1737023221265,1.05651614,710.42,709.45,1.04453518]
[1737023221859,1.33803578,710.43,709.44,3.08953518]
[1737023223760,1.33803578,710.43,709.44,2.045]
[1737023223965,0.28151964,710.43,709.44,2.045]
[1737023247971,0.28151964,710.43,709.46,1.04453518]
[1737023248574,0.28151964,710.43,709.37,1.04453518]
[1737023249477,0.28151964,710.43,709.37,3.53253518]
[1737023249681,0.28151964,710.43,709.37,2.488]
[1737023259990,0.28151964,710.43,709.37,3.53253518]
[1737023261890,0.28151964,710.43,709.37,2.488]
[1737023265693,0.28151964,710.43,709.4,1.04453518]
[1737023266789,0.28151964,710.43,709.42,1.04453518]
[1737023266989,0.28151964,710.43,709.42,1.97453518]
[1737023267793,0.28151964,710.43,709.42,0.93]
[1737023277600,0.28151964,710.43,709.42,1.726]
[1737023282203,0.28151964,710.43,709.44,1.04453518]
[1737023283397,0.28151964,710.43,709.42,1.726]
[1737023283398,0.28151964,710.43,709.45,1.04453518]
[1737023285403,0.28151964,710.43,709.44,1.04453518]
[1737023286404,0.28151964,710.43,709.42,1.726]
[1737023286405,0.28151964,710.43,709.45,1.04453518]
[1737023287314,0.28151964,710.43,709.42,1.726]
[1737023287315,0.28151964,710.43,709.46,1.04453518]
[1737023288217,0.28151964,710.43,709.47,1.04453518]
[1737023289015,0.28151964,710.43,709.46,1.04453518]
[1737023290006,0.28151964,710.43,709.45,1.04453518]
[1737023291298,0.28151964,710.43,709.46,1.04453518]
[1737023292307,0.28151964,710.43,709.45,1.04453518]
[1737023293506,0.28151964,710.43,709.48,1.04453518]
[1737023294200,0.28151964,710.43,709.48,2.29853518]
[1737023296107,0.28151964,710.43,709.49,1.04453518]
[1737023297704,0.28151964,710.43,709.48,1.254]
[1737023297705,0.28151964,710.43,709.51,1.04453518]
[1737023299206,0.28151964,710.43,709.49,1.04453518]
[1737023300306,0.28151964,710.43,709.48,2.29853518]
[1737023301211,0.28151964,710.43,709.49,1.04453518]
[1737023302411,0.28151964,710.43,709.52,1.04453518]
[1737023303716,0.28151964,710.43,709.52,2.59853518]
[1737023304915,0.28151964,710.43,709.52,1.554]
[1737023321524,0.28151964,710.43,709.52,2.728]
[1737023332122,0.28151964,710.43,709.52,3.77253518]
[1737023333227,0.28151964,710.43,709.53,1.04453518]
[1737023334225,0.28151964,710.43,709.56,1.04453518]
[1737023334630,0.28151964,710.43,709.56,1.85453518]
[1737023335326,0.28151964,710.43,709.56,0.81]
[1737023345530,0.28151964,710.43,709.56,1.784]
[1737023346435,0.28151964,710.43,709.58,1.04453518]
[1737023347735,0.28151964,710.43,709.56,1.784]
[1737023348734,0.28151964,710.43,709.56,2.82853518]
[1737023349635,0.28151964,710.43,709.56,1.784]
[1737023350638,0.28151964,710.43,709.56,2.82853518]
[1737023351942,0.28151964,710.43,709.56,1.784]
[1737023373854,0.28151964,710.43,709.6,1.04453518]
[1737023375260,0.28151964,710.43,709.63,1.04453518]
[1737023376161,0.28151964,710.43,709.64,1.04453518]
[1737023378556,0.28151964,710.43,709.65,1.04453518]
[1737023379656,0.28151964,710.43,709.61,1.04453518]
[1737023380561,0.28151964,710.43,709.62,1.04453518]
[1737023381462,0.28151964,710.43,709.6,1.73]
[1737023381463,0.28151964,710.43,709.61,1.04453518]
[1737023383364,0.28151964,710.43,709.6,1.73]
[1737023385165,0.28151964,710.43,709.6,2.77453518]
[1737023387166,0.28151964,710.43,709.61,1.04453518]
[1737023388166,0.28151964,710.43,709.6,1.73]
[1737023390168,0.28151964,710.43,709.6,2.77453518]
[1737023390871,0.28151964,710.43,709.61,1.04453518]
[1737023392969,0.28151964,710.43,709.63,1.04453518]
[1737023393973,0.28151964,710.43,709.6,1.73]
[1737023492039,0.28151964,710.43,709.6,2.77453518]
[1737023493540,0.28151964,710.43,709.61,1.04453518]
[1737023494534,0.28151964,710.43,709.5,1.04453518]
[1737023494943,0.28151964,710.43,709.5,3.54053518]
[1737023495440,0.28151964,710.43,709.51,1.04453518]
[1737023498446,0.28151964,710.43,709.5,2.496]
[1737023504653,0.28151964,710.43,709.55,1.04453518]
[1737023505549,0.28151964,710.43,709.59,1.04453518]
[1737023507852,0.28151964,710.43,709.62,1.04453518]
[1737023512950,0.28151964,710.43,709.5,2.496]
[1737023512951,0.28151964,710.43,709.6,1.04453518]
[1737023513958,0.28151964,710.43,709.61,1.04453518]
[1737023515159,0.28151964,710.43,709.61,1.90253518]
[1737023515360,0.28151964,710.43,709.61,1.89302843]
[1737023515758,0.28151964,710.43,709.61,0.858]
[1737023524270,0.28151964,710.43,709.61,1.995]
[1737023657979,0.28151964,710.43,709.62,1.04143349]
[1737023658877,0.28151964,710.43,709.54,1.04143349]
[1737023659479,0.28151964,710.43,709.54,3.61843349]
[1737023659675,0.28151964,710.43,709.54,2.577]
[1737023660679,0.28151964,710.43,709.55,1.04143349]
[1737023661681,0.28151964,710.43,709.56,1.04143349]
[1737023662984,0.28151964,710.43,709.58,1.04143349]
[1737023665086,0.28151964,710.43,709.6,1.04143349]
[1737023666383,0.28151964,710.43,709.54,2.577]
[1737023666384,0.28151964,710.43,709.58,1.04143349]
[1737023667387,0.28151964,710.43,709.6,1.04143349]
[1737023668186,0.28151964,710.43,709.59,1.04143349]
[1737023669689,0.28151964,710.43,709.54,2.577]
[1737023679195,0.28151964,710.43,709.63,1.04143349]
[1737023680696,0.28151964,710.43,709.63,2.12943349]
[1737023681288,0.28151964,710.43,709.63,1.088]
[1737023682295,0.28151964,710.43,709.64,1.04143349]
[1737023685395,0.28151964,710.43,709.63,1.088]
[1737023687696,0.28151964,710.43,709.63,2.185]
[1737023704901,0.28151964,710.43,709.68,1.04143349]
[1737023705807,0.28151964,710.43,709.66,1.04143349]
[1737023708308,1.05651614,710.7,709.66,1.04143349]
[1737023708905,1.05651614,710.7,709.63,2.185]
[1737023708906,1.05651614,711.67,709.63,2.185]
[1737023709507,0.28106862,711.57,709.63,2.185]
[1737023709810,1.05651614,711.47,709.63,2.185]
[1737023710010,0.28111603,711.45,709.63,2.185]
[1737023712708,1.05651614,711.42,709.63,2.185]
[1737023712908,0.28113578,711.4,709.63,2.185]
[1737023713712,1.05651614,711.35,709.63,2.185]
[1737023713910,0.28116345,711.33,709.63,2.185]
[1737023714508,1.05651614,711.32,709.63,2.185]
[1737023714709,0.28117531,711.3,709.63,2.185]
[1737023715513,1.05651614,711.24,709.63,2.185]
[1737023715713,0.28120694,711.22,709.63,2.185]
[1737023715914,0.28120694,711.22,709.64,0.25878709]
[1737023716308,0.28120694,711.22,709.65,0.25878709]
[1737023716508,0.28120694,711.22,709.34,1.04453518]
[1737023716509,0.28120694,711.22,709.66,0.25878378]
[1737023716711,0.28120694,711.22,709.6,1.04143349]
[1737023716915,0.28120694,711.22,709.61,0.25878759]
[1737023717210,0.28120694,711.22,709.61,1.34978759]
[1737023717413,0.28120694,711.22,709.62,0.25878759]
[1737023717615,1.33772308,711.22,709.63,1.04143349]
[1737023717914,1.33772308,711.22,709.64,0.25878851]
[1737023718715,1.33772308,711.22,709.65,0.25878954]
[1737023718916,1.05651614,711.08,709.71,1.04143349]
[1737023719216,0.28126626,711.07,709.72,0.25878954]
[1737023720212,0.28126626,711.07,709.73,0.25878954]
[1737023720516,0.28126626,711.07,709.69,1.04143349]
[1737023720517,0.28126626,711.07,709.74,0.25878954]
[1737023720713,0.28126626,711.07,709.7,0.25878954]
[1737023720911,0.28126626,711.07,709.71,0.25878954]
[1737023721116,0.28126626,711.07,709.72,0.25878954]
[1737023721317,0.28126626,711.07,709.73,0.25878954]
[1737023721517,0.28126626,711.07,709.74,0.25878954]
[1737023721717,0.28126626,711.07,709.68,0.25878954]
[1737023721917,0.28126626,711.07,709.69,0.25878954]
[1737023722218,0.28126626,711.07,709.7,0.25878954]
[1737023722418,0.28126626,711.07,709.68,0.25878954]
[1737023722717,0.28126626,711.07,709.69,0.25878954]
[1737023722916,0.28126626,711.07,709.67,0.25878954]
[1737023723221,0.28126626,711.07,709.68,0.25878954]
[1737023723417,0.28126626,711.07,709.69,0.25878795]
[1737023723617,0.28126626,711.07,709.7,0.25878795]
[1737023723817,0.28126626,711.07,709.71,0.25878795]
[1737023724019,0.28126626,711.07,709.72,0.25878795]
[1737023724218,1.46987909,711.06,709.73,0.25878795]
[1737023724517,0.28127417,711.05,709.74,0.25878795]
[1737023724717,0.28127417,711.05,709.65,1.04143349]
[1737023724912,0.28127417,711.05,709.66,0.25878752]
[1737023725619,0.28127417,711.05,709.67,0.25878752]
[1737023725818,0.28127417,711.05,709.68,0.25878752]
[1737023726021,0.28127417,711.05,709.69,0.25878752]
[1737023726213,0.28127417,711.05,709.64,1.04143349]
[1737023726214,0.28127417,711.05,709.7,0.25877252]
[1737023726417,0.28127417,711.05,709.71,0.25877252]
[1737023726615,0.28127417,711.05,709.72,0.25877252]
[1737023726920,0.28127417,711.05,709.73,0.25877209]
[1737023727121,0.28127417,711.05,709.74,0.25877209]
[1737023727322,0.28127417,711.05,709.75,0.25877209]
[1737023727526,0.28127417,711.05,709.65,1.04143349]
[1737023727719,0.28127417,711.05,709.66,0.25877103]
[1737023729719,0.28127417,711.05,709.67,1.04143349]
[1737023729919,0.28127417,711.05,709.68,0.25877103]
[1737023732225,0.28127417,711.05,709.69,0.25877103]
[1737023732527,0.28127417,711.05,709.7,0.25877103]
[1737023732728,0.28127417,711.05,709.71,0.25877103]
[1737023732928,0.28127417,711.05,709.68,0.25877103]
[1737023733126,0.28127417,711.05,709.69,0.25877103]
[1737023733324,0.28127417,711.05,709.7,0.25877103]
[1737023733524,0.28127417,711.05,709.71,0.25877103]
[1737023733725,0.28127417,711.05,709.72,0.25877103]
[1737023733926,0.28127417,711.05,709.73,0.25877103]
[1737023734128,0.28127417,711.05,709.74,0.25877103]
[1737023734423,0.28127417,711.05,709.75,0.25877103]
[1737023734622,0.28127417,711.05,709.76,0.25877103]
[1737023734929,0.28127417,711.05,709.77,0.25877103]
[1737023735228,0.28127417,711.05,709.78,0.25877103]
[1737023735428,0.28127417,711.05,709.79,0.25877103]
[1737023735624,0.28127417,711.05,709.8,0.25877103]
[1737023735831,0.28127417,711.05,709.81,0.25877103]
[1737023736129,0.28127417,711.05,709.82,0.25877103]
[1737023736324,0.28127417,711.05,709.75,1.04143349]
[1737023736522,0.28127417,711.05,709.76,0.25875475]
[1737023736727,0.28127417,711.05,709.75,1.04143349]
[1737023736929,0.28127417,711.05,709.76,0.25874415]
[1737023737329,0.28127417,711.05,709.77,0.2587401]
[1737023737523,0.28127417,711.05,709.71,1.04143349]
[1737023737830,0.28127417,711.05,709.72,0.25874016]
[1737023739531,0.28127417,711.05,709.72,1.30017365]
[1737023739730,0.28127417,711.05,709.72,1.04143349]
[1737023740029,0.28127417,711.05,709.73,0.25873993]
[1737023740230,0.28127417,711.05,709.73,1.30017342]
[1737023740432,0.28127417,711.05,709.74,0.25873993]
[1737023741431,0.28127417,711.05,709.74,1.30017342]
[1737023741631,0.28127417,711.05,709.75,0.25873993]
[1737023742830,0.28127417,711.05,709.61,2.013]
[1737023742831,0.28127417,711.05,709.79,1.04143349]
[1737023743027,0.28127417,711.05,709.8,0.25870797]
[1737023743430,0.28127417,711.05,709.81,0.25870122]
[1737023743634,0.28127417,711.05,709.85,1.04143349]
[1737023743929,0.28127417,711.05,709.86,0.25870122]
[1737023744527,0.28127417,711.05,709.86,1.25370122]
[1737023744731,0.28127417,711.05,709.87,1.04143349]
[1737023745631,0.28127417,711.05,709.86,2.03643349]
[1737023745926,0.28127417,711.05,709.87,0.25869717]
[1737023748131,0.28127417,711.05,709.86,2.03643349]
[1737023748331,0.28127417,711.05,709.87,0.25869237]
[1737023748835,0.28127417,711.05,709.89,1.04143349]
[1737023749036,0.28127417,711.05,709.9,0.25869237]
[1737023750932,0.28127417,711.05,709.86,2.11]
[1737023750933,0.28127417,711.05,709.91,0.25869]
[1737023751233,0.28127417,711.05,709.88,1.04143349]
[1737023751427,0.28127417,711.05,709.86,2.11]
[1737023760639,0.28127417,711.05,709.87,0.25867774]
[1737023761234,0.28127417,711.05,709.95,1.04143349]
[1737023761434,0.28127417,711.05,709.96,0.25867369]
[1737023762342,0.28127417,711.05,709.98,1.04143349]
[1737023762540,0.28127417,711.05,709.99,0.25867369]
[1737023762842,0.28127417,711.05,709.99,1.59367369]
[1737023763139,0.28127417,711.05,710.0,0.25867369]
[1737023763536,0.28127417,711.05,710.0,1.30010718]
[1737023763737,0.28127417,711.05,710.01,0.25867369]
[1737023763935,0.28127417,711.05,710.02,0.25868319]
[1737023764134,0.28127417,711.05,710.0,1.04143349]
[1737023764536,0.28127417,711.05,709.99,1.335]
[1737023765642,0.28127417,711.05,709.99,2.367]
[1737023768645,0.28127417,711.05,710.0,0.25869561]
[1737023769642,0.28127417,711.05,710.01,1.04143349]
[1737023770744,0.28127417,711.05,709.99,2.367]
[1737023777755,0.28127417,711.05,710.0,0.25866015]
[1737023778754,0.28127417,711.05,710.21,1.04143349]
[1737023779854,0.28127417,711.05,710.01,1.04453518]
[1737023779855,0.28127417,711.05,710.2,1.04143349]
[1737023782052,0.28127417,711.05,710.0,1.04453518]
[1737023782053,0.28127417,711.05,710.19,1.04143349]
[1737023783052,0.28127417,711.05,710.13,1.04143349]
[1737023786357,0.28127417,711.05,710.02,1.04143349]
[1737023787457,0.28127417,711.05,709.99,2.367]
[1737023787458,0.28127417,711.05,710.01,1.04143349]
[1737023788959,0.28127417,711.05,710.01,2.53043349]
[1737023789159,0.28127417,711.05,710.01,1.489]
[1737023793058,0.28127417,711.05,710.02,0.25866264]
[1737023793262,0.28127417,711.05,710.01,1.489]
[1737023793962,0.28127417,711.05,710.1,1.04143349]
[1737023794759,0.28127417,711.05,710.1,2.15543349]
[1737023795561,0.28127417,711.05,710.11,1.04143349]
[1737023796162,0.28127417,711.05,710.12,1.04143349]
[1737023797466,0.28127417,711.05,710.11,1.04143349]
[1737023798466,0.28127417,711.05,710.14,1.04143349]
[1737023799463,0.28127417,711.05,710.15,0.25862057]
[1737023799767,0.28127417,711.05,710.14,1.04143349]
[1737023800067,0.28127417,711.05,710.15,0.25862075]
[1737023800268,0.28127417,711.05,710.19,1.04143349]
[1737023802269,0.28127417,711.05,710.18,1.04143349]
[1737023803071,0.28127417,711.05,710.17,1.04143349]
[1737023804572,0.28127417,711.05,710.1,2.15543349]
[1737023805566,0.28127417,711.05,710.11,1.04143349]
[1737023807274,0.28127417,711.05,710.14,1.04143349]
[1737023812176,1.05651614,711.61,710.14,1.04143349]
[1737023812372,0.28105677,711.6,710.14,1.04143349]
[1737023812776,0.28105677,711.6,710.1,1.114]
[1737023812777,1.33757291,711.6,710.15,1.04143349]
[1737023813173,0.28106072,711.59,710.15,1.04143349]
[1737023814180,0.28106072,711.59,710.2,1.04143349]
[1737023818981,0.28106072,711.59,710.2,1.269]
[1737023820177,1.46873659,711.58,710.2,1.269]
[1737023820375,1.05651614,711.63,710.2,1.269]
[1737023820376,0.28106862,711.57,710.2,1.269]
[1737023822082,0.28106862,711.57,710.2,2.18]
[1737023824087,0.28106862,711.57,710.2,3.22143349]
[1737023825986,0.28106862,711.57,710.2,2.18]
[1737023827287,0.28106862,711.57,710.23,1.04143349]
[1737023828089,0.28106862,711.57,710.24,1.04143349]
[1737023829286,0.28106862,711.57,710.23,1.04143349]
[1737023832395,0.28106862,711.57,710.22,1.04143349]
[1737023834491,0.28106862,711.57,710.22,2.15943349]
[1737023835597,0.28106862,711.57,710.27,1.04143349]
[1737023836498,0.28106862,711.57,710.25,1.04143349]
[1737023836698,0.28106862,711.57,710.26,0.25854939]
[1737023837599,0.28106862,711.57,710.22,1.118]
[1737023837600,0.28106862,711.57,710.28,1.04143349]
[1737023838393,0.28106862,711.57,710.29,1.04143349]
[1737023839299,0.28106862,711.57,710.24,1.04143349]
[1737023839998,0.28106862,711.57,710.25,0.25854528]
[1737023840198,0.28106862,711.57,710.26,0.25854529]
[1737023840398,0.28106862,711.57,710.24,1.04143349]
[1737023840599,0.28106862,711.57,710.25,0.2585452]
[1737023840899,0.28106862,711.57,710.24,1.04143349]
[1737023841300,0.28106862,711.57,710.24,1.87543349]
[1737023841502,0.28106862,711.57,710.27,1.04143349]
[1737023842396,0.28106862,711.57,710.25,1.04143349]
[1737023845000,0.28106862,711.57,710.26,0.25852499]
[1737023845702,0.28106862,711.57,710.25,1.04143349]
[1737023845999,0.28106862,711.57,710.26,0.25852406]
[1737023846304,0.28106862,711.57,710.28,1.04143349]
[1737023846703,0.28106862,711.57,710.29,0.25852258]
[1737023847004,0.28106862,711.57,710.28,1.04143349]
[1737023847198,0.28106862,711.57,710.24,0.834]
[1737023847199,0.28106862,711.57,710.3,1.04143349]
[1737023848104,0.28106862,711.57,710.31,0.2585282]
[1737023848505,0.28106862,711.57,710.28,1.04143349]
[1737023848705,0.28106862,711.57,710.29,0.25852907]
[1737023849204,0.28106862,711.57,710.3,0.25852662]
[1737023849402,0.28106862,711.57,710.3,1.04143349]
[1737023851000,0.28106862,711.57,710.31,0.2585256]
[1737023851698,0.28106862,711.57,710.34,1.04143349]
[1737023852305,0.28106862,711.57,710.35,0.25852589]
[1737023852507,0.28106862,711.57,710.34,1.04143349]
[1737023852905,0.28106862,711.57,710.35,1.04143349]
[1737023854001,0.28106862,711.57,710.31,1.04143349]
[1737023854704,0.28106862,711.57,710.35,1.04143349]
[1737023857205,0.28106862,711.57,710.24,0.834]
[1737023857408,0.28106862,711.57,710.25,0.28159098]
[1737023863413,0.28106862,711.57,710.25,1.32302447]
[1737023864211,0.28106862,711.57,710.27,1.04143349]
[1737023864409,0.28106862,711.57,710.28,0.28157909]
[1737023864612,0.28106862,711.57,710.28,1.74957909]
[1737023865411,0.28106862,711.57,710.29,0.25847818]
[1737023865612,0.28106862,711.57,710.3,0.28157116]
[1737023866008,0.28106862,711.57,710.37,1.04143349]
[1737023866415,0.28106862,711.57,710.37,2.25143349]
[1737023866618,0.28106862,711.57,710.37,2.53297691]
[1737023867317,0.28106862,711.57,710.39,1.04143349]
[1737023868913,0.28106862,711.57,710.4,1.04143349]
[1737023869916,0.28106862,711.57,710.37,1.49154342]
[1737023880418,0.28106862,711.57,710.38,0.25849612]
[1737023881116,0.28106862,711.57,710.54,1.04143349]
[1737023881321,0.28106862,711.57,710.55,0.25849767]
[1737023881821,0.28106862,711.57,710.54,1.04143349]
[1737023882021,0.28106862,711.57,710.58,1.04143349]
[1737023884320,0.28106862,711.57,710.37,1.49154342]
[1737023884321,0.28106862,711.57,710.53,1.04143349]
[1737023886324,0.28106862,711.57,710.54,1.04143349]
[1737023886929,0.28106862,711.57,710.54,2.11343349]
[1737023887321,0.28106862,711.57,710.55,1.04143349]
[1737023888427,0.28106862,711.57,710.58,1.04143349]
[1737023890728,0.28106862,711.57,710.59,1.04143349]
[1737023891629,0.28106862,711.57,710.63,1.04143349]
[1737023892824,0.28106862,711.57,710.62,1.04143349]
[1737023893929,0.28106862,711.57,710.59,1.061]